fUSD/lending_fUSD_20250105
["ID","MTS","AMOUNT","RATE_DAILY","PERIOD"]
[347798171,1736113836244,-500.0,9.999e-05,2]
[347798172,1736113836254,-500.0,9.999e-05,2]
[347798173,1736113836264,-500.0,9.999e-05,2]
[347798174,1736113836273,-500.0,9.999e-05,2]
[347798175,1736113836283,-539.41,9.999e-05,2]
[347798176,1736113836292,-500.0,9.999e-05,2]
[347798177,1736113836302,-500.0,9.999e-05,2]
[347798178,1736113836312,-500.0,9.999e-05,2]
[347798179,1736113836322,-500.0,9.999e-05,2]
[347798180,1736113836331,-500.0,9.999e-05,2]
[347798181,1736113836341,-500.0,9.999e-05,2]
[347798182,1736113836351,-500.0,9.999e-05,2]
[347798183,1736113836361,-500.0,9.999e-05,2]
[347798184,1736113836372,-500.0,9.999e-05,2]
[347798185,1736113836382,-500.0,9.999e-05,2]
[347798186,1736113836391,-567.36,9.999e-05,2]
[347798187,1736113836401,-500.0,9.999e-05,2]
[347798188,1736113836410,-500.0,9.999e-05,2]
[347798189,1736113836420,-500.0,9.999e-05,2]
[347798190,1736113836430,-606.4,9.999e-05,2]
[347798191,1736113836439,-521.56,9.999e-05,2]
[347798192,1736113836449,-500.0,9.999e-05,2]
[347798193,1736113836459,-500.0,9.999e-05,2]
[347798194,1736113836470,-943.93,9.999e-05,2]
[347798195,1736113836480,-166.05,0.0001,2]
[347798196,1736113836490,-1912.65290886,0.0001,2]
[347798197,1736113836500,-1912.65290865,0.0001,2]
[347798198,1736113836509,-1912.65290865,0.0001,2]
[347798199,1736113836519,-1912.65290865,0.0001,2]
[347798200,1736113836529,-924.38,0.00010084,2]
[347798201,1736113836539,-1912.65290865,0.00010086,2]
[347798202,1736113836549,-250.0,0.00010117,2]
[347798203,1736113836558,-570.52,0.00010117,2]
[347798204,1736113836568,-250.0,0.00010127,2]
[347798205,1736113836578,-875.92,0.00010137,2]
[347798206,1736113836588,-157.55,0.00010137,2]
[347798207,1736113836598,-800.0,0.00010168,2]
[347798208,1736113836606,-1912.65290865,0.00010203,2]
[347798209,1736113836617,-500.0,0.00010272,2]
[347798210,1736113836627,-500.0,0.00010272,2]
[347798211,1736113836637,-500.0,0.00010272,2]
[347798212,1736113836647,-500.0,0.00010272,2]
[347798213,1736113836657,-790.76,0.00010272,2]
[347798214,1736113836667,-500.0,0.00010272,2]
[347798215,1736113836678,-206.68,0.00010272,2]
[347798216,1736113836688,-500.0,0.00010272,2]
[347798217,1736113836698,-155.510436,0.00010272,2]
[347798218,1736113836708,-500.0,0.00010272,2]
[347798219,1736113836717,-500.0,0.00010272,2]
[347798220,1736113836727,-368.67,0.00010272,2]
[347798221,1736113836736,-500.0,0.00010272,2]
[347798222,1736113836746,-500.0,0.00010272,2]
[347798223,1736113836756,-500.0,0.00010272,2]
[347798224,1736113836766,-500.0,0.00010272,2]
[347798225,1736113836775,-157.696547,0.00010272,2]
[347798226,1736113836785,-500.0,0.00010272,2]
[347798227,1736113836794,-595.38,0.00010272,2]
[347798228,1736113836803,-500.0,0.00010272,2]
[347798229,1736113836813,-500.0,0.00010272,2]
[347798230,1736113836822,-500.0,0.00010272,2]
[347798231,1736113836835,-500.0,0.00010272,2]
[347798232,1736113836845,-729.34,0.00010272,2]
[347798233,1736113836854,-769.31,0.00010272,2]
[347798234,1736113836863,-500.0,0.00010272,2]
[347798235,1736113836872,-500.0,0.00010272,2]
[347798236,1736113836882,-500.0,0.00010272,2]
[347798237,1736113836891,-500.0,0.00010272,2]
[347798238,1736113836901,-500.0,0.00010272,2]
[347798239,1736113836911,-500.0,0.00010272,2]
[347798240,1736113836921,-500.0,0.00010272,2]
[347798241,1736113836931,-500.0,0.00010272,2]
[347798242,1736113836940,-500.0,0.00010272,2]
[347798243,1736113836950,-500.0,0.00010272,2]
[347798244,1736113836959,-168.09,0.00010272,2]
[347798245,1736113836968,-500.0,0.00010272,2]
[347798246,1736113836977,-186.32,0.00010272,2]
[347798247,1736113836986,-500.0,0.00010272,2]
[347798248,1736113836995,-500.0,0.00010272,2]
[347798249,1736113837004,-500.0,0.00010272,2]
[347798250,1736113837013,-450.73070801,0.00010272,2]
[347798251,1736113837035,-49.26929199,0.00010272,2]
[347798252,1736113837044,-500.0,0.00010272,2]
[347798253,1736113837053,-500.0,0.00010272,2]
[347798254,1736113837063,-500.0,0.00010272,2]
[347798255,1736113837072,-500.0,0.00010272,2]
[347798256,1736113837082,-500.0,0.00010272,2]
[347798257,1736113837092,-500.0,0.00010272,2]
[347798258,1736113837102,-500.0,0.00010272,2]
[347798259,1736113837112,-500.0,0.00010272,2]
[347798260,1736113837122,-500.0,0.00010272,2]
[347798261,1736113837131,-500.0,0.00010272,2]
[347798262,1736113837141,-116.22641833,0.00010272,2]
[347798263,1736113837177,-383.77358167,0.00010272,2]
[347798264,1736113837186,-508.47,0.00010272,2]
[347798265,1736113837197,-500.0,0.00010272,2]
[347798266,1736113837208,-403.25967856,0.00010272,2]
[347798267,1736113837219,-96.74032144,0.00010272,2]
[347798268,1736113837230,-254.77234897,0.00010272,2]
[347798269,1736113837427,-500.0,9.998e-05,2]
[347798270,1736113837438,-500.0,9.998e-05,2]
[347798271,1736113837447,-12.13738047,0.00010272,2]
[347798272,1736113837458,-11.98027056,0.00010272,2]
[347798273,1736113837468,-500.0,0.00010272,2]
[347798274,1736113837478,-500.0,0.00010272,2]
[347798275,1736113837487,-219.21584269,0.00010272,2]
[347798276,1736113837495,-500.0,0.00010272,2]
[347798277,1736113837504,-186.94263675,0.00010272,2]
[347798278,1736113837516,-378.00513087,0.00010272,2]
[347798279,1736113837527,-169.05223238,0.00010272,2]
[347798280,1736113837536,-99.0687676,0.00010272,2]
[347798281,1736113837547,-862.24427429,0.00010272,2]
[347798282,1736113837558,-126.81695811,0.00010272,2]
[347798283,1736113837569,-178.77,0.00010272,2]
[347798284,1736113837578,-500.0,0.00010272,2]
[347798285,1736113837587,-500.0,0.00010272,2]
[347798287,1736113837596,-323.26501084,0.00010272,2]
[347798290,1736113837608,-176.73498916,0.00010272,2]
[347798292,1736113837617,-500.0,0.00010272,2]
[347798293,1736113837627,-500.0,0.00010272,2]
[347798296,1736113837637,-500.0,0.00010272,2]
[347798298,1736113837646,-500.0,0.00010272,2]
[347798300,1736113837656,-500.0,0.00010272,2]
[347798302,1736113837665,-500.0,0.00010273,2]
[347798303,1736113837675,-389.73,0.00010273,2]
[347798306,1736113837684,-418.89787034,0.00010273,2]
[347798308,1736113837695,-81.10212966,0.00010273,2]
[347798310,1736113837705,-500.0,0.00010273,2]
[347798312,1736113837713,-44.7486799,0.00010273,2]
[347798314,1736113837725,-455.2513201,0.00010273,2]
[347798316,1736113837734,-264.91518012,0.00010273,2]
[347798320,1736113837763,-235.08481988,0.00010273,2]
[347798322,1736113837772,-550.02,0.00010273,2]
[347798324,1736113837781,-500.0,0.00010273,2]
[347798326,1736113837791,-300.35,0.00010273,2]
[347798328,1736113837800,-105.15588012,0.00010273,2]
[347798330,1736113837812,-220.96411988,0.00010273,2]
[347798332,1736113837821,-500.0,0.00010273,2]
[347798334,1736113837835,-500.0,0.00010273,2]
[347798336,1736113837845,-233.28,0.00010273,2]
[347798338,1736113837854,-184.74,0.00010273,2]
[347798340,1736113837864,-263.27,0.00010273,2]
[347798342,1736113837875,-500.0,0.00010273,2]
[347798344,1736113837885,-500.0,0.00010273,2]
[347798346,1736113837894,-500.0,0.00010273,2]
[347798348,1736113837904,-199.55,0.00010273,2]
[347798350,1736113837914,-500.0,0.00010273,2]
[347798352,1736113837924,-500.0,0.00010273,2]
[347798354,1736113837934,-170.62,0.00010273,2]
[347798356,1736113837944,-500.0,0.00010273,2]
[347798358,1736113837954,-186.95,0.00010273,2]
[347798360,1736113838003,-500.0,0.00010273,2]
[347798361,1736113838014,-500.0,0.00010273,2]
[347798362,1736113838023,-500.0,0.00010273,2]
[347798363,1736113838032,-500.0,0.00010273,2]
[347798364,1736113838042,-500.0,0.00010273,2]
[347798365,1736113838051,-500.0,0.00010273,2]
[347798366,1736113838061,-500.0,0.00010273,2]
[347798367,1736113838070,-500.0,0.00010273,2]
[347798368,1736113838080,-645.02,0.00010273,2]
[347798369,1736113838089,-500.0,0.00010273,2]
[347798370,1736113838098,-500.0,0.00010273,2]
[347798371,1736113838108,-500.0,0.00010273,2]
[347798372,1736113838119,-415.89,0.00010273,2]
[347798373,1736113838131,-564.41,0.00010273,2]
[347798374,1736113838141,-595.14,0.00010273,2]
[347798375,1736113838150,-500.0,0.00010273,2]
[347798376,1736113838159,-500.0,0.00010273,2]
[347798377,1736113838168,-341.26,0.00010273,2]
[347798378,1736113838177,-500.0,0.00010273,2]
[347798379,1736113838187,-646.82,0.00010273,2]
[347798380,1736113838196,-500.0,0.00010273,2]
[347798381,1736113838205,-500.0,0.00010273,2]
[347798382,1736113838214,-500.0,0.00010273,2]
[347798383,1736113838223,-500.0,0.00010273,2]
[347798384,1736113838232,-500.0,0.00010273,2]
[347798385,1736113838242,-500.0,0.00010273,2]
[347798386,1736113838251,-500.0,0.00010273,2]
[347798387,1736113838261,-500.0,0.00010273,2]
[347798388,1736113838271,-500.0,0.00010273,2]
[347798389,1736113838280,-500.0,0.00010273,2]
[347798390,1736113838289,-500.0,0.00010273,2]
[347798391,1736113838300,-504.34,0.00010273,2]
[347798392,1736113838309,-620.04,0.00010273,2]
[347798393,1736113838318,-500.0,0.00010273,2]
[347798394,1736113838326,-500.0,0.00010273,2]
[347798395,1736113838335,-500.0,0.00010273,2]
[347798396,1736113838344,-500.0,0.00010273,2]
[347798397,1736113838353,-530.96,0.00010273,2]
[347798398,1736113838363,-200.65237343,0.00010273,2]
[347798399,1736113838398,-299.34762657,0.00010273,2]
[347798400,1736113838407,-500.0,0.00010273,2]
[347798401,1736113838416,-500.0,0.00010273,2]
[347798402,1736113838425,-500.0,0.00010273,2]
[347798403,1736113838434,-500.0,0.00010273,2]
[347798404,1736113838443,-500.0,0.00010273,2]
[347798405,1736113838452,-500.0,0.00010273,2]
[347798406,1736113838461,-500.0,0.00010273,2]
[347798407,1736113838470,-500.0,0.00010273,2]
[347798408,1736113838479,-500.0,0.00010273,2]
[347798409,1736113838488,-500.0,0.00010273,2]
[347798410,1736113838497,-178.69,0.00010273,2]
[347798411,1736113838507,-500.0,0.00010273,2]
[347798412,1736113838516,-500.0,0.00010273,2]
[347798413,1736113838525,-500.0,0.00010273,2]
[347798414,1736113838533,-500.0,0.00010273,2]
[347798415,1736113838543,-500.0,0.00010273,2]
[347798416,1736113838553,-500.0,0.00010273,2]
[347798417,1736113838563,-500.0,0.00010273,2]
[347798418,1736113838573,-473.43,0.00010273,2]
[347798419,1736113838583,-500.0,0.00010273,2]
[347798420,1736113838592,-500.0,0.00010273,2]
[347798421,1736113838601,-500.0,0.00010273,2]
[347798422,1736113838611,-500.0,0.00010273,2]
[347798423,1736113838620,-500.0,0.00010273,2]
[347798424,1736113838629,-500.0,0.00010273,2]
[347798425,1736113838639,-601.78,0.00010273,2]
[347798426,1736113838649,-500.0,0.00010273,2]
[347798427,1736113838659,-500.0,0.00010273,2]
[347798428,1736113838667,-500.0,0.00010273,2]
[347798429,1736113838676,-500.0,0.00010273,2]
[347798430,1736113838685,-531.81,0.00010273,2]
[347798431,1736113838694,-500.0,0.00010273,2]
[347798432,1736113838703,-500.0,0.00010273,2]
[347798433,1736113838713,-500.0,0.00010273,2]
[347798434,1736113838722,-500.0,0.00010273,2]
[347798435,1736113838731,-314.1,0.00010273,2]
[347798436,1736113838740,-220.66,0.00010273,2]
[347798437,1736113838749,-321.3,0.00010273,2]
[347798438,1736113838758,-500.0,0.00010273,2]
[347798439,1736113838767,-500.0,0.00010273,2]
[347798440,1736113838777,-500.0,0.00010273,2]
[347798441,1736113838786,-500.0,0.00010273,2]
[347798442,1736113838795,-500.0,0.00010273,2]
[347798443,1736113838804,-500.0,0.00010273,2]
[347798444,1736113838814,-270.04972193,0.00010273,2]
[347798445,1736113838823,-500.0,0.00010273,2]
[347798446,1736113838836,-263.2,0.00010273,2]
[347798447,1736113838846,-500.0,0.00010273,2]
[347798448,1736113838855,-500.0,0.00010273,2]
[347798449,1736113838863,-500.0,0.00010273,2]
[347798450,1736113838872,-500.0,0.00010273,2]
[347798451,1736113838881,-500.0,0.00010273,2]
[347798452,1736113838890,-500.0,0.00010273,2]
[347798453,1736113838899,-500.0,0.00010273,2]
[347798454,1736113838908,-500.0,0.00010273,2]
[347798455,1736113838917,-500.0,0.00010273,2]
[347798456,1736113838926,-500.0,0.00010273,2]
[347798457,1736113838936,-268.35,0.00010273,2]
[347798458,1736113838945,-500.0,0.00010273,2]
[347798459,1736113838954,-500.0,0.00010273,2]
[347798460,1736113838963,-500.0,0.00010273,2]
[347798461,1736113838972,-500.0,0.00010273,2]
[347798462,1736113838981,-376.07,0.00010273,2]
[347798463,1736113838990,-500.0,0.00010273,2]
[347798464,1736113838999,-500.0,0.00010273,2]
[347798465,1736113839008,-500.0,0.00010273,2]
[347798466,1736113839017,-500.0,0.00010273,2]
[347798467,1736113839026,-521.56,0.00010273,2]
[347798468,1736113839035,-500.0,0.00010273,2]
[347798469,1736113839044,-943.93,0.00010273,2]
[347798470,1736113839053,-1000.2597802,0.00010278,2]
[347798471,1736113839063,-306.07,0.00010306,2]
[347798472,1736113839074,-1912.65290865,0.00010321,2]
[347798473,1736113839083,-500.0,0.00010345,2]
[347798474,1736113839092,-1492.75,0.0001039,2]
[347798475,1736113839101,-529.71601437,0.00010391,2]
[347798476,1736113839110,-500.0,0.00010399,2]
[347798477,1736113839119,-500.0,0.00010399,2]
[347798478,1736113839128,-500.0,0.00010399,2]
[347798479,1736113839137,-500.0,0.00010399,2]
[347798480,1736113839147,-500.0,0.00010399,2]
[347798481,1736113839157,-547.16,0.00010399,2]
[347798482,1736113839165,-500.0,0.00010399,2]
[347798483,1736113839175,-500.0,0.00010399,2]
[347798484,1736113839184,-487.41,0.00010399,2]
[347798485,1736113839193,-500.0,0.00010399,2]
[347798486,1736113839203,-500.0,0.00010399,2]
[347798487,1736113839211,-500.0,0.00010399,2]
[347798488,1736113839220,-500.0,0.00010399,2]
[347798489,1736113839230,-500.0,0.00010399,2]
[347798490,1736113839239,-500.0,0.00010399,2]
[347798491,1736113839248,-500.0,0.00010399,2]
[347798492,1736113839257,-500.0,0.00010399,2]
[347798493,1736113839266,-500.0,0.00010399,2]
[347798494,1736113839275,-500.0,0.00010399,2]
[347798495,1736113839285,-500.0,0.00010399,2]
[347798496,1736113839294,-500.0,0.00010399,2]
[347798498,1736113839303,-620.78,0.00010399,2]
[347798499,1736113839313,-500.0,0.00010399,2]
[347798500,1736113839322,-500.0,0.00010399,2]
[347798501,1736113839331,-500.0,0.00010399,2]
[347798502,1736113839340,-500.0,0.00010399,2]
[347798503,1736113839349,-500.0,0.00010399,2]
[347798504,1736113839358,-500.0,0.00010399,2]
[347798505,1736113839367,-500.0,0.00010399,2]
[347798506,1736113839376,-500.0,0.00010399,2]
[347798507,1736113839385,-500.0,0.00010399,2]
[347798508,1736113839394,-500.0,0.00010399,2]
[347798509,1736113839403,-500.0,0.00010399,2]
[347798510,1736113839412,-500.0,0.00010399,2]
[347798511,1736113839421,-500.0,0.00010399,2]
[347798512,1736113839431,-500.0,0.00010399,2]
[347798513,1736113839442,-500.0,0.00010399,2]
[347798514,1736113839451,-500.0,0.00010399,2]
[347798515,1736113839467,-500.0,0.00010399,2]
[347798516,1736113839477,-591.31,0.00010399,2]
[347798517,1736113839487,-500.0,0.00010399,2]
[347798518,1736113839496,-500.0,0.00010399,2]
[347798519,1736113839505,-210.93,0.00010399,2]
[347798520,1736113839514,-500.0,0.00010399,2]
[347798521,1736113839524,-500.0,0.00010399,2]
[347798522,1736113839534,-500.0,0.00010399,2]
[347798523,1736113839543,-500.0,0.00010399,2]
[347798524,1736113839552,-560.77,0.00010399,2]
[347798525,1736113839561,-500.0,0.00010399,2]
[347798526,1736113839570,-500.0,0.00010399,2]
[347798527,1736113839579,-500.0,0.00010399,2]
[347798528,1736113839588,-500.0,0.00010399,2]
[347798529,1736113839596,-244.53666028,0.00010399,2]
[347798530,1736113839609,-255.46333972,0.00010399,2]
[347798531,1736113839619,-500.0,0.00010399,2]
[347798532,1736113839627,-629.05,0.00010399,2]
[347798533,1736113839636,-500.0,0.00010399,2]
[347798534,1736113839645,-500.0,0.00010399,2]
[347798535,1736113839654,-500.0,0.00010399,2]
[347798536,1736113839663,-500.0,0.00010399,2]
[347798537,1736113839672,-500.0,0.00010399,2]
[347798538,1736113839682,-500.0,0.00010399,2]
[347798539,1736113839691,-500.0,0.00010399,2]
[347798540,1736113839700,-500.0,0.00010399,2]
[347798541,1736113839709,-500.0,0.00010399,2]
[347798542,1736113839718,-500.0,0.00010399,2]
[347798543,1736113839727,-500.0,0.00010399,2]
[347798544,1736113839736,-500.0,0.00010399,2]
[347798545,1736113839745,-556.09,0.00010399,2]
[347798546,1736113839754,-500.0,0.00010399,2]
[347798547,1736113839763,-439.15786028,0.00010399,2]
[347798549,1736113839834,-500.0,9.998e-05,2]
[347798551,1736113839843,-60.84213972,0.00010399,2]
[347798553,1736113839853,-500.0,0.00010399,2]
[347798555,1736113839861,-500.0,0.00010399,2]
[347798557,1736113839871,-191.80826402,0.00010399,2]
[347798558,1736113839883,-308.19173598,0.00010399,2]
[347798559,1736113839892,-500.0,0.00010399,2]
[347798560,1736113839902,-500.0,0.00010399,2]
[347798561,1736113839912,-500.0,0.00010399,2]
[347798562,1736113839921,-569.45,0.00010399,2]
[347798563,1736113839930,-500.0,0.00010399,2]
[347798564,1736113839939,-500.0,0.00010399,2]
[347798565,1736113839948,-500.0,0.00010399,2]
[347798566,1736113839957,-500.0,0.00010399,2]
[347798567,1736113839966,-500.0,0.00010399,2]
[347798568,1736113839975,-500.0,0.00010399,2]
[347798569,1736113839984,-500.0,0.00010399,2]
[347798570,1736113839993,-500.0,0.00010399,2]
[347798571,1736113840003,-500.0,0.00010399,2]
[347798572,1736113840011,-500.0,0.00010399,2]
[347798573,1736113840020,-500.0,0.00010399,2]
[347798574,1736113840030,-500.0,0.00010399,2]
[347798575,1736113840039,-500.0,0.00010399,2]
[347798576,1736113840048,-500.0,0.00010399,2]
[347798577,1736113840057,-500.0,0.00010399,2]
[347798578,1736113840066,-500.0,0.00010399,2]
[347798579,1736113840075,-500.0,0.00010399,2]
[347798580,1736113840084,-500.0,0.00010399,2]
[347798581,1736113840093,-500.0,0.00010399,2]
[347798582,1736113840102,-500.0,0.00010399,2]
[347798583,1736113840112,-500.0,0.00010399,2]
[347798584,1736113840121,-500.0,0.00010399,2]
[347798585,1736113840130,-500.0,0.00010399,2]
[347798586,1736113840139,-500.0,0.00010399,2]
[347798587,1736113840148,-500.0,0.00010399,2]
[347798588,1736113840157,-500.0,0.00010399,2]
[347798589,1736113840166,-500.0,0.00010399,2]
[347798590,1736113840175,-500.0,0.00010399,2]
[347798591,1736113840184,-349.09569381,0.00010399,2]
[347798592,1736113840402,-150.90430619,0.00010399,2]
[347798593,1736113840411,-500.0,0.00010399,2]
[347798594,1736113840420,-500.0,0.00010399,2]
[347798595,1736113840429,-267.89569381,0.00010399,2]
[347798596,1736113840441,-232.10430619,0.00010399,2]
[347798597,1736113840450,-491.11,0.00010399,2]
[347798598,1736113840459,-500.0,0.00010399,2]
[347798599,1736113840468,-500.0,0.00010399,2]
[347798600,1736113840478,-500.0,0.00010399,2]
[347798601,1736113840487,-500.0,0.00010399,2]
[347798602,1736113840496,-500.0,0.00010399,2]
[347798603,1736113840505,-500.0,0.00010399,2]
[347798604,1736113840515,-500.0,0.00010399,2]
[347798605,1736113840525,-500.0,0.00010399,2]
[347798606,1736113840535,-500.0,0.00010399,2]
[347798607,1736113840544,-500.0,0.00010399,2]
[347798608,1736113840554,-500.0,0.00010399,2]
[347798609,1736113840564,-500.0,0.00010399,2]
[347798610,1736113840573,-500.0,0.00010399,2]
[347798611,1736113840583,-500.0,0.00010399,2]
[347798612,1736113840593,-500.0,0.00010399,2]
[347798613,1736113840603,-500.0,0.00010399,2]
[347798614,1736113840613,-500.0,0.00010399,2]
[347798615,1736113840623,-500.0,0.00010399,2]
[347798616,1736113840635,-500.0,0.00010399,2]
[347798617,1736113840647,-500.0,0.00010399,2]
[347798618,1736113840657,-500.0,0.00010399,2]
[347798619,1736113840667,-500.0,0.00010399,2]
[347798620,1736113840676,-500.0,0.00010399,2]
[347798621,1736113840686,-500.0,0.00010399,2]
[347798622,1736113840695,-500.0,0.00010399,2]
[347798623,1736113840705,-500.0,0.00010399,2]
[347798624,1736113840716,-500.0,0.00010399,2]
[347798625,1736113840726,-500.0,0.00010399,2]
[347798626,1736113840737,-500.0,0.00010399,2]
[347798627,1736113840747,-500.0,0.00010399,2]
[347798628,1736113840756,-500.0,0.00010399,2]
[347798629,1736113840769,-500.0,0.00010399,2]
[347798630,1736113840781,-516.1,0.00010399,2]
[347798631,1736113840791,-500.0,0.00010399,2]
[347798632,1736113840801,-500.0,0.00010399,2]
[347798633,1736113840813,-500.0,0.00010399,2]
[347798634,1736113840823,-500.0,0.00010399,2]
[347798635,1736113840836,-500.0,0.00010399,2]
[347798636,1736113840846,-500.0,0.00010399,2]
[347798637,1736113840858,-603.33,0.00010399,2]
[347798638,1736113840870,-500.0,0.00010399,2]
[347798639,1736113840881,-2761.96607921,0.000104,3]
[347798640,1736113840895,-2429.4141106,0.000104,3]
[347798641,1736113840906,-366.61981019,0.000104,3]
[347798642,1736113840916,-1185.59,0.00010436,2]
[347798643,1736113840925,-1912.65290865,0.00010438,2]
[347798644,1736113840935,-500.0,0.00010499,2]
[347798645,1736113840944,-599.04,0.00010543,2]
[347798646,1736113840955,-500.0,0.00010543,2]
[347798647,1736113840966,-500.0,0.00010543,2]
[347798648,1736113840977,-500.0,0.00010543,2]
[347798649,1736113840986,-1495.5,0.00010544,2]
[347798650,1736113840996,-500.0,0.00010546,2]
[347798651,1736113841006,-790.76,0.00010546,2]
[347798652,1736113841017,-500.0,0.00010546,2]
[347798653,1736113841027,-500.0,0.00010546,2]
[347798654,1736113841036,-500.0,0.00010546,2]
[347798655,1736113841045,-348.01,0.00010546,2]
[347798656,1736113841055,-500.0,0.00010546,2]
[347798657,1736113841066,-157.696547,0.00010546,2]
[347798658,1736113841075,-177.04,0.00010546,2]
[347798659,1736113841084,-500.0,0.00010546,2]
[347798660,1736113841094,-500.0,0.00010546,2]
[347798661,1736113841103,-500.0,0.00010546,2]
[347798662,1736113841112,-729.34,0.00010546,2]
[347798663,1736113841123,-769.31,0.00010546,2]
[347798664,1736113841132,-500.0,0.00010546,2]
[347798665,1736113841142,-500.0,0.00010546,2]
[347798666,1736113841151,-500.0,0.00010546,2]
[347798667,1736113841161,-500.0,0.00010546,2]
[347798668,1736113841170,-500.0,0.00010546,2]
[347798669,1736113841180,-500.0,0.00010546,2]
[347798670,1736113841190,-500.0,0.00010546,2]
[347798671,1736113841200,-500.0,0.00010546,2]
[347798672,1736113841210,-500.0,0.00010546,2]
[347798673,1736113841220,-500.0,0.00010546,2]
[347798674,1736113841230,-500.0,0.00010546,2]
[347798675,1736113841239,-500.0,0.00010546,2]
[347798676,1736113841249,-500.0,0.00010546,2]
[347798677,1736113841258,-500.0,0.00010546,2]
[347798678,1736113841268,-508.47,0.00010546,2]
[347798679,1736113841278,-500.0,0.00010546,2]
[347798680,1736113841288,-500.0,0.00010546,2]
[347798681,1736113841298,-734.0,0.00010546,2]
[347798682,1736113841307,-1088.13,0.00010546,2]
[347798683,1736113841317,-500.0,0.00010546,2]
[347798684,1736113841327,-41.19169806,0.00010546,2]
[347798685,1736113841338,-458.80830194,0.00010546,2]
[347798686,1736113841348,-500.0,0.00010546,2]
[347798687,1736113841358,-1.04169806,0.00010547,2]
[347798688,1736113841370,-195.89830194,0.00010547,2]
[347798689,1736113841379,-181.98,0.00010547,2]
[347798690,1736113841389,-443.50733156,0.00010547,2]
[347798691,1736113841656,-56.49266844,0.00010547,2]
[347798692,1736113841665,-300.64,0.00010547,2]
[347798693,1736113841675,-500.0,0.00010547,2]
[347798694,1736113841684,-521.56,0.00010547,2]
[347798695,1736113841694,-500.0,0.00010547,2]
[347798696,1736113841704,-943.93,0.00010547,2]
[347798697,1736113841713,-1912.65290865,0.00010555,2]
[347798698,1736113841722,-255.0,0.00010654,2]
[347798699,1736113841732,-1912.65290865,0.00010672,2]
[347798700,1736113841742,-500.0,0.00010673,2]
[347798701,1736113841753,-192.36,0.00010673,2]
[347798702,1736113841763,-325.62,0.00010673,2]
[347798703,1736113841772,-425.68,0.00010673,2]
[347798704,1736113841782,-500.0,0.00010673,2]
[347798705,1736113841793,-500.0,0.00010673,2]
[347798706,1736113841803,-500.0,0.00010673,2]
[347798707,1736113841815,-500.0,0.00010673,2]
[347798708,1736113841825,-558.68,0.00010673,2]
[347798709,1736113841839,-392.4,0.00010673,2]
[347798710,1736113841848,-500.0,0.00010673,2]
[347798711,1736113841859,-500.0,0.00010673,2]
[347798712,1736113841872,-500.0,0.00010673,2]
[347798713,1736113841881,-215.74,0.00010673,2]
[347798714,1736113841893,-548.81,0.00010673,2]
[347798715,1736113841903,-269.64912153,0.00010673,2]